bitfinex/quotes_BTCUSD_20230106
["timestamp","ask_amount","ask_price","bid_price","bid_amount"]
[1673011317202,0.27401499,16752.0,16751.0,0.670873]
[1673011318000,0.00575552,16752.0,16751.0,0.670873]
[1673011318300,0.27385161,16752.0,16751.0,0.670873]
[1673011318779,0.27385161,16752.0,16751.0,0.3566]
[1673011319033,0.27385161,16752.0,16751.0,0.670933]
[1673011319311,0.27385161,16752.0,16751.0,0.35666]
[1673011319538,0.27385161,16752.0,16751.0,0.670933]
[1673011320090,0.27385161,16752.0,16751.0,0.35666]
[1673011320611,0.07118111,16752.0,16751.0,0.17836]
[1673011321141,0.66812411,16752.0,16751.0,0.17836]
[1673011323153,1.11471705,16752.0,16751.0,0.17836]
[1673011323931,0.9360231,16752.0,16751.0,0.17836]
[1673011324200,1.29318473,16752.0,16751.0,0.17836]
[1673011324463,2.33672067,16752.0,16751.0,0.17836]
[1673011324728,2.06882168,16752.0,16751.0,0.17836]
[1673011324968,2.06882168,16752.0,16751.0,0.1783]
[1673011325729,2.68063668,16752.0,16751.0,0.18036672]
[1673011326072,2.33663428,16752.0,16751.0,0.1783]
[1673011326231,2.06882168,16752.0,16751.0,0.1783]
[1673011326459,2.33663479,16752.0,16751.0,0.1783]
[1673011326719,1.6742662,16752.0,16751.0,0.84794814]
[1673011326979,1.04904575,16752.0,16751.0,0.84794814]
[1673011327492,1.04904575,16752.0,16751.0,0.1783]
[1673011327745,1.82461626,16752.0,16751.0,0.1783]
[1673011329265,1.22767326,16752.0,16751.0,0.1783]
[1673011330028,1.04897969,16752.0,16751.0,0.1783]
[1673011330265,1.40614132,16752.0,16751.0,0.1783]
[1673011330557,1.04897969,16752.0,16751.0,0.1783]
[1673011330834,1.40614132,16752.0,16751.0,0.1783]
[1673011331559,1.04897969,16752.0,16751.0,0.1783]
[1673011332560,1.64592269,16752.0,16751.0,0.1783]
[1673011333061,0.78116658,16752.0,16751.0,0.17840332]
[1673011333319,0.78116658,16752.0,16751.0,0.1783]
[1673011333829,0.18422358,16752.0,16751.0,0.1783]
[1673011334649,0.00575552,16752.0,16751.0,0.1783]
[1673011337044,0.18422358,16752.0,16751.0,0.1783]
[1673011337623,0.85914955,16752.0,16751.0,0.1783]
[1673011337882,1.12696266,16752.0,16751.0,0.1783]
[1673011338132,0.85914955,16752.0,16751.0,0.1783]
[1673011338388,0.85914955,16752.0,16751.0,0.17831062]
[1673011338639,0.85914955,16752.0,16751.0,0.1782073]
[1673011341729,0.85914955,16752.0,16751.0,0.17831062]
[1673011342246,0.85914955,16752.0,16751.0,0.1782073]
[1673011343027,1.12696266,16752.0,16751.0,0.1782073]
[1673011343537,0.85914955,16752.0,16751.0,0.1782073]
[1673011343805,1.12696266,16752.0,16751.0,0.1782073]
[1673011344078,1.12696266,16752.0,16751.0,0.26248817]
[1673011345597,0.53001966,16752.0,16751.0,0.26248817]
[1673011345841,0.53001966,16752.0,16751.0,0.26259149]
[1673011346091,0.36775582,16752.0,16751.0,0.17831062]
[1673011346368,0.36775582,16752.0,16751.0,0.22307171]
[1673011346881,0.09994271,16752.0,16751.0,0.22307171]
[1673011347136,0.09994271,16752.0,16751.0,0.88886019]
[1673011347879,0.36775582,16752.0,16751.0,0.88886019]
[1673011348922,0.36775582,16752.0,16751.0,0.88875687]
[1673011349938,0.62497474,16752.0,16751.0,0.88875687]
[1673011350201,0.62497474,16752.0,16751.0,0.88886019]
[1673011351797,0.62497474,16752.0,16751.0,0.88875687]
[1673011352008,0.44659294,16752.0,16751.0,0.88875687]
[1673011353797,0.44659294,16752.0,16751.0,0.88886019]
[1673011354387,0.44659294,16752.0,16751.0,1.20302987]
[1673011354643,0.44659294,16752.0,16751.0,0.88875687]
[1673011354902,0.44659294,16752.0,16751.0,0.88886019]
[1673011355937,1.82549937,16753.0,16751.0,0.88886019]
[1673011356196,1.82549937,16753.0,16752.0,0.1783]
[1673011358260,1.82549937,16753.0,16752.0,0.492553]
[1673011358514,1.82549937,16753.0,16752.0,0.1783]
[1673011363084,1.82549937,16753.0,16752.0,0.17836]
[1673011366498,1.2884382,16753.0,16752.0,0.17836]
[1673011367789,1.8853462,16753.0,16752.0,0.17836]
[1673011368047,3.10145535,16753.0,16752.0,0.17836]
[1673011368315,2.48964035,16753.0,16752.0,0.17836]
[1673011368588,3.10145535,16753.0,16752.0,0.17836]
[1673011368866,2.48964035,16753.0,16752.0,0.17836]
[1673011369121,3.10145535,16753.0,16752.0,0.17836]
[1673011369382,2.48964035,16753.0,16752.0,0.17836]
[1673011369891,3.10145535,16753.0,16752.0,0.17836]
[1673011370158,3.10145535,16753.0,16752.0,0.1783]
[1673011370415,2.48964035,16753.0,16752.0,0.1783]
[1673011370675,2.4971612,16753.0,16752.0,0.17823492]
[1673011370938,1.8853462,16753.0,16752.0,0.17823492]
[1673011371208,2.4971612,16753.0,16752.0,0.17823492]
[1673011371733,2.48964035,16753.0,16752.0,0.17823492]
[1673011371993,3.10145535,16753.0,16752.0,0.17823492]
[1673011372255,2.48964035,16753.0,16752.0,0.17823492]
[1673011372763,3.10145535,16753.0,16752.0,0.17823492]
[1673011373045,2.4971612,16753.0,16752.0,0.17823492]
[1673011373312,1.8853462,16753.0,16752.0,0.17823492]
[1673011374399,1.8853462,16753.0,16751.0,0.66318451]
[1673011374660,0.53751616,16752.0,16751.0,0.66318451]
[1673011374921,1.13445916,16752.0,16751.0,0.66318451]
[1673011375949,1.13445916,16752.0,16751.0,0.66328783]
[1673011376215,1.13445916,16752.0,16751.0,0.66318451]
[1673011376455,1.13445916,16752.0,16751.0,0.04482109]
[1673011376730,1.80936504,16752.0,16751.0,0.04482109]
[1673011379680,1.86879188,16752.0,16751.0,0.04482109]
[1673011379937,2.48060688,16752.0,16751.0,0.04482109]
[1673011380200,1.86879188,16752.0,16751.0,0.04482109]
[1673011380679,3.68251796,16752.0,16751.0,0.04482109]
[1673011380681,3.86081796,16752.0,16751.0,0.04482109]
[1673011380942,3.26107144,16752.0,16751.0,0.04482109]
[1673011381223,3.86081796,16752.0,16751.0,0.04482109]
[1673011381487,3.26107144,16752.0,16751.0,0.04482109]
[1673011383332,3.26107144,16752.0,16751.0,0.04476109]
[1673011384835,2.65677729,16752.0,16751.0,0.04476109]
[1673011385103,3.26107144,16752.0,16751.0,0.04476109]
[1673011385360,2.65677729,16752.0,16751.0,0.04476109]
[1673011385602,2.47847729,16752.0,16751.0,0.04476109]
[1673011389404,3.50245784,16752.0,16751.0,0.04476109]
[1673011389645,3.08277144,16752.0,16751.0,0.04476109]
[1673011391931,3.08277144,16752.0,16751.0,0.04465992]
[1673011395247,3.60668467,16752.0,16751.0,0.04465992]
[1673011395538,3.37026682,16752.0,16751.0,0.04465992]
[1673011396854,3.38604017,16752.0,16751.0,0.04465992]
[1673011397113,3.31543815,16752.0,16751.0,0.04465992]
[1673011397370,3.38293817,16752.0,16751.0,0.04465992]
[1673011397623,3.84362124,16752.0,16751.0,0.04465992]
[1673011398129,3.77612122,16752.0,16751.0,0.04465992]
[1673011398624,3.95302122,16752.0,16751.0,0.04465992]
[1673011398895,4.0164164,16752.0,16751.0,0.04465992]
[1673011399143,3.7164164,16752.0,16751.0,0.04465992]
[1673011400180,3.25573333,16752.0,16751.0,0.04465992]
[1673011400445,2.65143918,16752.0,16751.0,0.04465992]
[1673011400720,2.47453918,16752.0,16751.0,0.04465992]
[1673011402289,2.39956258,16752.0,16751.0,0.04465992]
[1673011402797,1.86272418,16752.0,16751.0,0.04465992]
[1673011403045,2.47453918,16752.0,16751.0,0.04465992]
[1673011403619,2.39958735,16752.0,16751.0,0.04465992]
[1673011403810,1.86272418,16752.0,16751.0,0.04465992]
[1673011404343,2.23866526,16752.0,16751.0,0.04465992]
[1673011404585,2.85048026,16752.0,16751.0,0.04465992]
[1673011404839,2.47453918,16752.0,16751.0,0.04465992]
[1673011405841,1.86272418,16752.0,16751.0,0.04465992]
[1673011406150,2.47453918,16752.0,16751.0,0.04465992]
[1673011406347,3.07883333,16752.0,16751.0,0.04465992]
[1673011406853,2.46701833,16752.0,16751.0,0.04465992]
[1673011407114,3.45477441,16752.0,16751.0,0.04465992]
[1673011408874,2.47453918,16752.0,16751.0,0.04465992]
[1673011409127,3.07883333,16752.0,16751.0,0.04465992]
[1673011409377,2.47453918,16752.0,16751.0,0.04465992]
[1673011410390,3.07883333,16752.0,16751.0,0.04465992]
[1673011411397,2.47453918,16752.0,16751.0,0.04465992]
[1673011412669,1.86272418,16752.0,16751.0,0.04465992]
[1673011412913,2.47453918,16752.0,16751.0,0.04465992]
[1673011414181,1.86272418,16752.0,16751.0,0.04465992]
[1673011415702,1.9554269,16752.0,16751.0,0.04465992]
[1673011415974,1.9554269,16752.0,16751.0,0.04459417]
[1673011416189,1.73974125,16752.0,16751.0,0.60395656]
[1673011416464,1.193886,16752.0,16751.0,0.60395656]
[1673011416718,1.193886,16752.0,16751.0,0.91822956]
[1673011417507,0.596943,16752.0,16751.0,0.91822956]
[1673011418248,0.596943,16752.0,16751.0,0.91812624]
[1673011419018,1.193886,16752.0,16751.0,0.91812624]
[1673011419278,1.193886,16752.0,16751.0,0.60385324]
[1673011419814,1.193886,16752.0,16751.0,0.60195124]
[1673011420577,1.193886,16752.0,16751.0,0.04269217]
[1673011421582,1.193886,16752.0,16751.0,0.04288874]
[1673011421828,1.193886,16752.0,16751.0,0.35716174]
[1673011422089,1.64141752,16752.0,16751.0,0.35716174]
[1673011422338,1.64141752,16752.0,16751.0,0.04288874]
[1673011422842,1.04447452,16752.0,16751.0,0.67354974]
[1673011423369,0.44753152,16752.0,16751.0,0.67354974]
[1673011423910,0.44753152,16752.0,16751.0,0.98782274]
[1673011424906,0.44753152,16752.0,16751.0,0.67335317]
[1673011425214,1.04447452,16752.0,16751.0,0.67335317]
[1673011425969,0.596943,16752.0,16751.0,0.67335317]
[1673011427865,0.596943,16752.0,16751.0,0.67354974]
[1673011428662,0.596943,16752.0,16751.0,0.67335317]
[1673011429221,1.04427228,16752.0,16751.0,0.67335317]
[1673011429477,1.04426798,16752.0,16751.0,0.67335317]
[1673011430807,1.193886,16752.0,16751.0,0.67335317]
[1673011431880,0.596943,16752.0,16751.0,0.67335317]
[1673011432145,1.193886,16752.0,16751.0,0.04269217]
[1673011432421,1.78703113,16752.0,16751.0,0.04269217]
[1673011432937,2.39884613,16752.0,16751.0,0.04269217]
[1673011436757,2.39884613,16752.0,16751.0,0.04457214]
[1673011436981,2.39884613,16752.0,16751.0,0.04269217]
[1673011437500,1.78703113,16752.0,16751.0,0.04269217]
[1673011439954,1.78703113,16752.0,16751.0,0.04457214]
[1673011440228,1.78703113,16752.0,16751.0,0.04269217]
[1673011441316,1.78703113,16752.0,16751.0,0.04258392]
[1673011441846,1.24967588,16752.0,16751.0,0.04446389]
[1673011442375,0.65273288,16752.0,16751.0,0.04446389]
[1673011442647,0.65273288,16752.0,16751.0,0.04258392]
[1673011442901,1.10025694,16752.0,16751.0,0.04446389]
[1673011443159,1.10026145,16752.0,16751.0,0.04446389]
[1673011443417,0.50331845,16752.0,16751.0,0.04446389]
[1673011443676,0.50331845,16752.0,16751.0,0.35685692]
[1673011443939,0.50331845,16752.0,16751.0,0.35873689]
[1673011444456,1.10026145,16752.0,16751.0,0.04258392]
[1673011445177,1.24967588,16752.0,16751.0,0.04258392]
[1673011445449,1.78703113,16752.0,16751.0,0.04258392]
[1673011447272,1.86149088,16752.0,16751.0,0.04258392]
[1673011447511,1.24967588,16752.0,16751.0,0.04258392]
[1673011447753,1.78682591,16752.0,16751.0,0.04258392]
[1673011448003,1.24967588,16752.0,16751.0,0.04258392]
[1673011448263,2.36149088,16752.0,16751.0,0.04258392]
[1673011449270,2.96578503,16752.0,16751.0,0.04258392]
[1673011455846,2.36149088,16752.0,16751.0,0.04258392]
[1673011456111,2.96578503,16752.0,16751.0,0.04258392]
[1673011456372,2.36149088,16752.0,16751.0,0.04258392]
[1673011459005,2.96578503,16752.0,16751.0,0.04258392]
[1673011459258,3.35147468,16752.0,16751.0,0.04258392]
[1673011459758,3.64647468,16752.0,16751.0,0.04258392]
[1673011460010,2.66204566,16752.0,16751.0,0.04258392]
[1673011460325,3.41938686,16752.0,16751.0,0.04258392]
[1673011460529,3.05544272,16752.0,16751.0,0.04258392]
[1673011460778,3.65951441,16752.0,16751.0,0.04258392]
[1673011462786,3.35951441,16752.0,16751.0,0.04258392]
[1673011463041,3.65951441,16752.0,16751.0,0.04258392]
[1673011463773,4.1565706,16752.0,16751.0,0.04258392]
[1673011465009,4.16713226,16752.0,16751.0,0.04258392]
[1673011466284,4.13149292,16752.0,16751.0,0.04258392]
[1673011467057,3.83149292,16752.0,16751.0,0.04258392]
[1673011467316,3.33443673,16752.0,16751.0,0.04258392]
[1673011468345,2.97783673,16752.0,16751.0,0.04258392]
[1673011469174,2.36602173,16752.0,16751.0,0.04258392]
[1673011469380,2.97783673,16752.0,16751.0,0.04258392]
[1673011469851,2.37376504,16752.0,16751.0,0.04258392]
[1673011471540,2.97783673,16752.0,16751.0,0.04258392]
[1673011471762,2.36602173,16752.0,16751.0,0.04258392]
[1673011472030,2.97783673,16752.0,16751.0,0.04258392]
[1673011474598,3.42450515,16752.0,16751.0,0.04258392]
[1673011474853,2.97783673,16752.0,16751.0,0.04258392]
[1673011475354,3.27783673,16752.0,16751.0,0.04258392]
[1673011475633,2.97783673,16752.0,16751.0,0.04258392]
[1673011476911,3.27783673,16752.0,16751.0,0.04258392]
[1673011477367,3.37349577,16752.0,16751.0,0.04258392]
[1673011478390,2.76942408,16752.0,16751.0,0.04258392]
[1673011479212,3.05656004,16752.0,16751.0,0.04258392]
[1673011479451,3.65630656,16752.0,16751.0,0.04258392]
[1673011479699,3.65622969,16752.0,16751.0,0.04258392]
[1673011479975,3.72238262,16752.0,16751.0,0.04258392]
[1673011480226,3.62672358,16752.0,16751.0,0.04258392]
[1673011480475,3.02697706,16752.0,16751.0,0.04258392]
[1673011480756,3.62672358,16752.0,16751.0,0.04258392]
[1673011480975,3.02697706,16752.0,16751.0,0.04258392]
[1673011486363,3.33139582,16752.0,16751.0,0.04258392]
[1673011486894,3.15449582,16752.0,16751.0,0.04258392]
[1673011487144,2.54268082,16752.0,16751.0,0.04258392]
[1673011487389,3.15449582,16752.0,16751.0,0.04258392]
[1673011492396,2.55007706,16752.0,16751.0,0.04258392]
[1673011493238,2.85007706,16752.0,16751.0,0.04258392]
[1673011494757,2.67177706,16752.0,16751.0,0.04258392]
[1673011495260,2.37177706,16752.0,16751.0,0.04258392]
[1673011495775,2.67177706,16752.0,16751.0,0.04258392]
[1673011496766,2.60562413,16752.0,16751.0,0.04258392]
[1673011497536,2.67017753,16752.0,16751.0,0.04258392]
[1673011497799,2.66552756,16752.0,16751.0,0.04258392]
[1673011498044,2.78252413,16752.0,16751.0,0.04258392]
[1673011498552,3.19188129,16752.0,16751.0,0.04258392]
[1673011498817,3.79162781,16752.0,16751.0,0.04258392]
[1673011499059,3.19188129,16752.0,16751.0,0.04258392]
[1673011499312,3.80012781,16752.0,16751.0,0.04258392]
[1673011500074,3.20038129,16752.0,16751.0,0.04258392]
[1673011500345,2.82666347,16752.0,16751.0,0.04258392]
[1673011500609,3.60470999,16752.0,16751.0,0.04258392]
[1673011500865,4.48301049,16752.0,16751.0,0.04258392]
[1673011501441,4.47275449,16752.0,16751.0,0.04258392]
[1673011501937,5.05113469,16752.0,16751.0,0.04258392]
[1673011502482,5.22943469,16752.0,16751.0,0.04258392]
[1673011502727,4.94508186,16752.0,16751.0,0.04258392]
[1673011503229,5.0713706,16752.0,16751.0,0.04258392]
[1673011503485,4.18980166,16752.0,16751.0,0.04258392]
[1673011504205,2.39904545,16752.0,16751.0,0.04258392]
[1673011504445,2.36340611,16752.0,16751.0,0.04258392]
[1673011504935,2.30386813,16752.0,16751.0,0.04258392]
[1673011505175,2.07125469,16752.0,16751.0,0.04258392]
[1673011505418,2.68306969,16752.0,16751.0,0.04258392]
[1673011505655,2.98306969,16752.0,16751.0,0.04258392]
[1673011505902,3.58281621,16752.0,16751.0,0.04258392]
[1673011506161,3.79555555,16752.0,16751.0,0.04258392]
[1673011507201,3.84883619,16752.0,16751.0,0.04258392]
[1673011507437,3.79555555,16752.0,16751.0,0.04258392]
[1673011507947,3.19580903,16752.0,16751.0,0.04258392]
[1673011508193,2.86859209,16752.0,16751.0,0.04258392]
[1673011508679,2.39149209,16752.0,16751.0,0.04258392]
[1673011509673,2.69149209,16752.0,16751.0,0.04258392]
[1673011510164,3.23925399,16752.0,16751.0,0.04258392]
[1673011510410,3.8532748,16752.0,16751.0,0.04258392]
[1673011510661,4.0315748,16752.0,16751.0,0.04258392]
[1673011512398,3.02856917,16752.0,16751.0,0.04258392]
[1673011513376,2.67346917,16752.0,16751.0,0.04258392]
[1673011513623,2.37346917,16752.0,16751.0,0.04258392]
[1673011513882,2.39746917,16752.0,16751.0,0.04258392]
[1673011515584,1.78565417,16752.0,16751.0,0.04258392]
[1673011515834,2.39746917,16752.0,16751.0,0.04258392]
[1673011517195,2.78615084,16752.0,16751.0,0.04258392]
[1673011518209,3.08615084,16752.0,16751.0,0.04258392]
[1673011518942,3.0165498,16752.0,16751.0,0.04258392]
[1673011519178,3.07815213,16752.0,16751.0,0.04258392]
[1673011519419,3.0165498,16752.0,16751.0,0.04258392]
[1673011519907,3.07199633,16752.0,16751.0,0.04258392]
[1673011520612,3.24929633,16752.0,16751.0,0.04258392]
[1673011520862,2.94929633,16752.0,16751.0,0.04258392]
[1673011521892,2.56061466,16752.0,16751.0,0.04258392]
[1673011522122,3.16509261,16752.0,16751.0,0.04258392]
[1673011522616,2.55327761,16752.0,16751.0,0.04258392]
[1673011523386,2.37597761,16752.0,16751.0,0.04258392]
[1673011523871,2.37597761,16752.0,16751.0,0.04248891]
[1673011525324,1.77149966,16752.0,16751.0,0.04248891]
[1673011527325,2.07149966,16752.0,16751.0,0.04248891]
[1673011528809,1.77149966,16752.0,16751.0,0.04248891]
[1673011529309,2.37590407,16752.0,16751.0,0.04248891]
[1673011532440,2.37590407,16752.0,16751.0,0.05508537]
[1673011541525,1.77149966,16752.0,16751.0,0.05508537]
[1673011541775,2.07149966,16752.0,16751.0,0.05508537]
[1673011542005,1.77149966,16752.0,16751.0,0.05508537]
[1673011542855,2.38331466,16752.0,16751.0,0.05508537]
[1673011543094,2.68331466,16752.0,16751.0,0.05508537]
[1673011543852,3.08275088,16752.0,16751.0,0.05508537]
[1673011544373,2.68331466,16752.0,16751.0,0.05508537]
[1673011544640,2.68331466,16752.0,16751.0,0.05499397]
[1673011547226,2.62786813,16752.0,16751.0,0.05499397]
[1673011547235,2.68499978,16752.0,16751.0,0.05499397]
[1673011547483,2.72063912,16752.0,16751.0,0.05499397]
[1673011547739,3.12380778,16752.0,16751.0,0.05499397]
[1673011550052,3.06667613,16752.0,16751.0,0.05499397]
[1673011551058,3.66642265,16752.0,16751.0,0.05499397]
[1673011552340,3.06667613,16752.0,16751.0,0.05499397]
[1673011552592,3.66642265,16752.0,16751.0,0.05499397]
[1673011553592,3.06667613,16752.0,16751.0,0.05499397]
[1673011554953,3.06660136,16752.0,16751.0,0.05499397]
[1673011555207,3.66634788,16752.0,16751.0,0.05499397]
[1673011556518,3.06660136,16752.0,16751.0,0.05499397]
[1673011556775,3.66634788,16752.0,16751.0,0.05499397]
[1673011557025,3.06660136,16752.0,16751.0,0.05499397]
[1673011557548,3.14036523,16752.0,16751.0,0.05499397]
[1673011557799,3.06660136,16752.0,16751.0,0.05499397]
[1673011558047,3.66634788,16752.0,16751.0,0.05499397]
[1673011558300,3.12942095,16752.0,16751.0,0.05499397]
[1673011558802,3.06660136,16752.0,16751.0,0.05499397]
[1673011560075,3.11898212,16752.0,16751.0,0.05499397]
[1673011560323,3.11946066,16752.0,16751.0,0.05499397]
[1673011560580,3.29636066,16752.0,16751.0,0.05499397]
[1673011560844,2.893192,16752.0,16751.0,0.05499397]
[1673011561343,2.281377,16752.0,16751.0,0.05499397]
[1673011561592,2.893192,16752.0,16751.0,0.05499397]
[1673011564732,1.804477,16752.0,16751.0,0.05499397]
[1673011565228,2.08039011,16752.0,16751.0,0.05499397]
[1673011565478,1.76883766,16752.0,16751.0,0.05499397]
[1673011565736,2.37324647,16752.0,16751.0,0.05499397]
[1673011569338,1.74463094,16752.0,16751.0,0.5852884]
[1673011569602,1.74463094,16752.0,16751.0,0.8995614]
[1673011570618,1.74463094,16752.0,16751.0,0.36926697]
[1673011570863,1.74463094,16752.0,16751.0,0.05499397]
[1673011571106,1.20747836,16752.0,16751.0,0.05499397]
[1673011573073,1.74446695,16752.0,16751.0,0.05499397]
[1673011574086,1.20747836,16752.0,16751.0,0.05499397]
[1673011575375,1.20747836,16752.0,16751.0,0.36926697]
[1673011575629,1.74438667,16752.0,16751.0,0.36926697]
[1673011577378,1.20747836,16752.0,16751.0,0.36926697]
[1673011577623,1.20747836,16752.0,16751.0,0.36937029]
[1673011577871,1.74438667,16752.0,16751.0,0.36926697]
[1673011578121,1.74438667,16752.0,16751.0,0.05499397]
[1673011579132,1.20747836,16752.0,16751.0,0.36926697]
[1673011579383,1.20747836,16752.0,16751.0,1.21312502]
[1673011579893,1.65468062,16752.0,16751.0,1.21303656]
[1673011580405,1.20747836,16752.0,16751.0,1.21303656]
[1673011581153,1.20747836,16752.0,16751.0,0.54747851]
[1673011581407,1.74438667,16752.0,16751.0,0.54747851]
[1673011582357,1.20747836,16752.0,16751.0,0.54747851]
[1673011585145,1.20747836,16752.0,16751.0,0.54954523]
[1673011585404,1.65458291,16752.0,16751.0,0.54954523]
[1673011585911,1.65458291,16752.0,16751.0,0.54747851]
[1673011589384,1.65458291,16752.0,16751.0,0.54758183]
[1673011590410,1.65458291,16752.0,16751.0,0.54747851]
[1673011591190,2.01216663,16752.0,16751.0,0.54747851]
[1673011591441,1.65458291,16752.0,16751.0,0.54747851]
[1673011592838,1.05763991,16752.0,16751.0,0.54747851]
[1673011594276,1.05763991,16752.0,16751.0,0.23320551]
[1673011594785,1.05763991,16752.0,16751.0,0.23340208]
[1673011595307,1.05763991,16752.0,16751.0,0.54747851]
[1673011596058,1.05763991,16752.0,16751.0,0.54767508]
[1673011596308,1.05763991,16752.0,16751.0,1.2008215]
[1673011596560,1.41533072,16752.0,16751.0,1.20062493]
[1673011596823,1.05763991,16752.0,16751.0,1.20062493]
[1673011597080,1.05763991,16752.0,16751.0,1.2008215]
[1673011597918,1.05763991,16752.0,16751.0,1.20062493]
[1673011598613,1.05763991,16752.0,16751.0,0.54747851]
[1673011599120,1.65458291,16752.0,16751.0,0.54747851]
[1673011599377,1.27083871,16752.0,16751.0,0.23320551]
[1673011599631,1.80774702,16752.0,16751.0,0.23320551]
[1673011600908,1.27083871,16752.0,16751.0,0.23320551]
[1673011601459,1.80774702,16752.0,16751.0,0.23527223]
[1673011602048,1.27083871,16752.0,16751.0,0.23527223]
[1673011603374,1.27083871,16752.0,16751.0,0.23320551]
[1673011603637,1.20747836,16752.0,16751.0,0.23527223]
[1673011603895,1.20747836,16752.0,16751.0,0.54954523]
[1673011604177,1.20747836,16752.0,16751.0,0.54946412]
[1673011605296,1.20747836,16752.0,16751.0,0.23519112]
[1673011606058,1.20747836,16752.0,16751.0,1.01553854]
[1673011606059,0.82986672,16752.0,16751.0,1.01553854]
[1673011606308,0.82986672,16752.0,16751.0,1.32981154]
[1673011607320,0.65078567,16752.0,16751.0,1.32981154]
[1673011607567,0.82982815,16752.0,16751.0,1.32981154]
[1673011608059,0.47158801,16752.0,16751.0,1.32981154]
[1673011608323,0.65070852,16752.0,16751.0,1.32981154]
[1673011609822,1.09841225,16752.0,16751.0,1.32981154]
[1673011610068,0.82978957,16752.0,16751.0,1.32981154]
[1673011610531,1.09830576,16752.0,16751.0,1.32981154]
[1673011610782,0.65060203,16752.0,16751.0,1.32825359]
[1673011611529,0.65061682,16752.0,16751.0,1.32825359]
[1673011612786,0.65061682,16752.0,16751.0,1.32618687]
[1673011613030,0.82978957,16752.0,16751.0,1.32618687]
[1673011613293,2.26135346,16752.0,16751.0,0.54583945]
[1673011613543,2.26135346,16752.0,16751.0,0.23156645]
[1673011613544,1.27591933,16752.0,16751.0,0.23156645]
[1673011613801,1.27591933,16752.0,16751.0,0.05326645]
[1673011614307,1.72349259,16752.0,16751.0,0.05326645]
[1673011614563,1.27591933,16752.0,16751.0,0.05326645]
[1673011614857,1.27591933,16752.0,16751.0,0.23156645]
[1673011614858,1.72349229,16752.0,16751.0,0.23156645]
[1673011615125,1.72349229,16752.0,16751.0,0.05326645]
[1673011615677,1.27591933,16752.0,16751.0,0.05326645]
[1673011617575,1.27591933,16752.0,16751.0,0.36764277]
[1673011617826,1.27591933,16752.0,16751.0,0.36753945]
[1673011618861,1.42660176,16752.0,16751.0,0.96728597]
[1673011619368,1.06849691,16752.0,16751.0,1.35218915]
[1673011619891,0.62086585,16752.0,16751.0,0.75244263]
[1673011620389,1.06850085,16752.0,16751.0,1.35218915]
[1673011620647,1.66544385,16752.0,16751.0,0.05326645]
[1673011620910,1.28170042,16752.0,16751.0,0.05326645]
[1673011621427,1.81860873,16752.0,16751.0,0.05326645]
[1673011622981,2.43042373,16752.0,16751.0,0.05326645]
[1673011623234,1.81860873,16752.0,16751.0,0.05326645]
[1673011623519,2.43042373,16752.0,16751.0,0.05326645]
[1673011624536,2.44893173,16752.0,16751.0,0.05326645]
[1673011625803,2.29351542,16752.0,16751.0,0.05326645]
[1673011626407,2.83068854,16752.0,16751.0,0.05326645]
[1673011631294,1.81887354,16752.0,16751.0,0.05326645]
[1673011631549,1.81887354,16752.0,16751.0,0.05315351]
[1673011632555,1.89351542,16752.0,16751.0,0.05315351]
[1673011633033,1.99351542,16752.0,16751.0,0.05315351]
[1673011634261,2.53057822,16752.0,16751.0,0.05315351]
[1673011634511,2.5328334,16752.0,16751.0,0.05315351]
[1673011634769,3.17288155,16752.0,16751.0,0.05315351]
[1673011636247,3.64968155,16752.0,16751.0,0.05315351]
[1673011638436,3.34968155,16752.0,16751.0,0.05315351]
[1673011639220,2.74527274,16752.0,16751.0,0.05315351]
[1673011639457,2.5313334,16752.0,16751.0,0.05315351]
[1673011640173,2.10642385,16752.0,16751.0,0.05315351]
[1673011641344,2.10230726,16752.0,16751.0,0.05315351]
[1673011642881,2.70671607,16752.0,16751.0,0.05315351]
[1673011643131,3.00671607,16752.0,16751.0,0.05315351]
[1673011643377,2.41080726,16752.0,16751.0,0.05315351]
[1673011643618,2.85863188,16752.0,16751.0,0.05315351]
[1673011643863,3.03693188,16752.0,16751.0,0.05315351]
[1673011645611,2.73693188,16752.0,16751.0,0.05315351]
[1673011645844,3.34026585,16752.0,16751.0,0.01259646]
[1673011646320,3.34026585,16752.0,16751.0,0.05065885]
[1673011647075,3.64026585,16752.0,16751.0,0.05065885]
[1673011647820,3.03693188,16752.0,16751.0,0.05065885]
[1673011648520,3.22796417,16752.0,16751.0,0.05065885]
[1673011648984,3.19232483,16752.0,16751.0,0.05065885]
[1673011650412,3.19232483,16752.0,16751.0,8.5e-07]
[1673011650413,5.90743625,16752.0,16751.0,8.5e-07]
[1673011650683,5.90743625,16752.0,16750.0,6e-05]
[1673011650684,0.21664,16751.0,16747.0,0.00015]
[1673011650941,0.89149957,16748.0,16747.0,0.00015]
[1673011651199,1.74099076,16748.0,16747.0,0.00015]
[1673011651472,2.11042783,16748.0,16746.0,0.0038919]
[1673011651743,1.32490428,16747.0,16746.0,0.0038919]
[1673011652001,1.92202528,16747.0,16746.0,0.0038919]
[1673011652267,2.9635358,16747.0,16746.0,0.0038919]
[1673011652799,3.86917074,16747.0,16746.0,0.0038919]
[1673011653072,3.33288146,16747.0,16746.0,0.0038919]
[1673011653594,4.13996847,16747.0,16746.0,0.0038919]
[1673011654129,4.31746847,16747.0,16746.0,9e-07]
[1673011654598,4.9206885,16747.0,16746.0,9e-07]
[1673011654854,4.31746847,16747.0,16746.0,9e-07]
[1673011655112,3.98839034,16747.0,16746.0,9e-07]
[1673011656148,4.59054334,16747.0,16746.0,9e-07]
[1673011656681,3.98839034,16747.0,16746.0,9e-07]
[1673011656958,4.31746847,16747.0,16746.0,9e-07]
[1673011657221,4.91962147,16747.0,16746.0,9e-07]
[1673011657472,4.31746847,16747.0,16746.0,9e-07]
[1673011658594,4.31746847,16747.0,16745.0,1.1e-07]
[1673011658853,3.07604446,16746.0,16744.0,0.00388703]
[1673011659102,4.54826961,16745.0,16744.0,0.00388703]
[1673011659350,5.42695004,16745.0,16744.0,0.00388703]
[1673011659628,4.29527401,16745.0,16744.0,0.00388703]
[1673011660627,4.91893179,16745.0,16744.0,0.00388703]
[1673011660880,5.51281002,16745.0,16744.0,0.00388703]
[1673011661902,0.00388,16744.0,16742.0,0.00411637]
[1673011662230,0.00388,16744.0,16742.0,3.7e-07]
[1673011662231,3.51660367,16743.0,16742.0,3.7e-07]
[1673011662397,6.86054995,16743.0,16742.0,3.7e-07]
[1673011662651,7.77512864,16743.0,16742.0,3.7e-07]
[1673011662905,9.5377291,16743.0,16742.0,3.7e-07]
[1673011663150,8.64103842,16743.0,16742.0,3.7e-07]
[1673011663402,9.17467777,16743.0,16742.0,3.7e-07]
[1673011663904,9.17497691,16743.0,16742.0,3.7e-07]
[1673011664146,8.64095433,16743.0,16742.0,3.7e-07]
[1673011664420,8.66697167,16743.0,16742.0,3.7e-07]
[1673011664714,7.33152463,16743.0,16742.0,3.7e-07]
[1673011664932,6.88723514,16743.0,16742.0,3.7e-07]
[1673011665197,7.33155983,16743.0,16742.0,3.7e-07]
[1673011665456,7.15405983,16743.0,16742.0,3.7e-07]
[1673011665731,6.70973514,16743.0,16742.0,3.7e-07]